Workbook

Sheet Sheet1
A1: Net Operating Income 2802 Whitis Ave
A2: As of October 22, 2025
D4: Montly Actuals* | F4: Projected | Q4: Actual Annual Total | R4: Pro Forma Calculations
D5: 2025-09-01 | E5: 2025-10-01 | F5: 2025-11-01 | G5: 2025-12-01 | H5: 2026-01-01 | I5: 2026-02-01 | J5: 2026-03-01 | K5: 2026-04-01 | L5: 2026-05-01 | M5: 2026-06-01 | N5: 2026-07-01 | O5: 2026-08-01
A6: Income
B7: Rental Income | D7: 14703 | E7: =D7 -> 14703 | F7: =E7 -> 14703 | G7: 14703 | H7: 14703 | I7: 14703 | J7: 14703 | K7: 14703 | L7: 14703 | M7: 14703 | N7: 14703 | O7: 14703 | Q7: =SUM(D7:O7) -> 176436 | R7: =Q7 -> 176436
B8: Utility Payments from Tenants | D8: =D23*0.8 -> 982.48 | E8: =D8 -> 982.48 | F8: 982.48 | G8: 982.48 | H8: 982.48 | I8: 982.48 | J8: 982.48 | K8: 982.48 | L8: 982.48 | M8: 982.48 | N8: 982.48 | O8: 982.48 | Q8: =SUM(D8:O8) -> 11789.76 | R8: =Q8 -> 11789.76
B10: Total Income | D10: =SUM(D7:D8) -> 15685.48 | E10: =SUM(E7:E8) -> 15685.48 | F10: 15685.48 | G10: 15685.48 | H10: 15685.48 | I10: 15685.48 | J10: 15685.48 | K10: 15685.48 | L10: 15685.48 | M10: 15685.48 | N10: 15685.48 | O10: 15685.48 | Q10: =SUM(D10:O10) -> 188225.76 | R10: =SUM(R7:R8) -> 188225.76
B12: Potential Gross Income (PGI) | Q12: =Q10 -> 188225.76 | R12: =R10 -> 188225.76
B13: Less Vacancy and Credit Loss 5% | Q13: =Q12*0.05 -> 9411.288 | R13: =R12*0.05 -> 9411.288
B15: Effective Gross Income (EGI) | Q15: =Q12-Q13 -> 178814.472 | R15: =R12-R13 -> 178814.472
A17: Operating Costs
B18: Repairs | E18: 275 | F18: 0 | G18: 200 | H18: 200 | I18: 200 | J18: 200 | K18: 200 | L18: 200 | M18: 200 | N18: 200 | O18: 200 | Q18: =SUM(D18:O18) -> 2075 | R18: 4530 | S18: * Using Reserve Study Figure in Pro Forma since it is higher
B19: Property Tax | H19: 21202 | Q19: 21202 | R19: 21202
B20: Insurance | G20: 10575 | Q20: 10575 | R20: 10575
B21: Advertising | D21: 400 | J21: 400 | Q21: 800 | R21: 800
B22: Property Management | D22: 0 | E22: 0 | F22: 0 | G22: 0 | H22: 0 | I22: 0 | J22: 0 | K22: 0 | L22: 0 | M22: 0 | N22: 0 | O22: 0 | Q22: 0 | R22: 0
B23: Electric, Water, & Trash | D23: =122.81*10 -> 1228.1 | E23: =D23 -> 1228.1 | F23: =E23 -> 1228.1 | G23: 1228.1 | H23: 1228.1 | I23: 1228.1 | J23: 1228.1 | K23: 1228.1 | L23: 1228.1 | M23: 1228.1 | N23: 1228.1 | O23: 1228.1 | Q23: 14737.2 | R23: =Q23 -> 14737.2
B24: Internet | D24: 65 | E24: 65 | F24: 65 | G24: 65 | H24: 65 | I24: 65 | J24: 65 | K24: 65 | L24: 65 | M24: 65 | N24: 65 | O24: 65 | Q24: 780 | R24: =Q24 -> 780
B26: Total Operating Costs | D26: =SUM(D18:D24) -> 1693.1 | E26: =SUM(E18:E24) -> 1568.1 | F26: 1293.1 | G26: 12068.1 | H26: 22695.1 | I26: 1493.1 | J26: 1893.1 | K26: 1493.1 | L26: 1493.1 | M26: 1493.1 | N26: 1493.1 | O26: 1493.1 | Q26: =SUM(D26:O26) -> 50169.2 | R26: =SUM(R18:R24) -> 52624.2
B27: Expense Ratio | Q27: =R26/R15 -> 0.2942949718 | R27: =R26/R15 -> 0.2942949718
A29: Net Operating Income | D29: =D10-D26 -> 13992.38 | E29: =E10-E26 -> 14117.38 | F29: =F10-F26 -> 14392.38 | G29: =G10-G26 -> 3617.38 | H29: =H10-H26 -> -7009.62 | I29: =I10-I26 -> 14192.38 | J29: =J10-J26 -> 13792.38 | K29: =K10-K26 -> 14192.38 | L29: =L10-L26 -> 14192.38 | M29: =M10-M26 -> 14192.38 | N29: =N10-N26 -> 14192.38 | O29: =O10-O26 -> 14192.38 | Q29: =SUM(D29:O29) -> 138056.56 | R29: =Q15-R26 -> 126190.272
A31: Capitalization Rate | Q31: =Q29/1900000 -> 0.07266134737 | R31: =R29/1900000 -> 0.06641593263
A33: * Major capital improvements were completed in August 2025 where all units were vacated. Project included gut renovation on each unit including bathrooms, kitchens, floor, and walls.
B34: Starting Sept 1, 2025, property is fully stabilized with full occupancy.
